bitfinex/quotes_BTCUSD_20251208
["timestamp","ask_amount","ask_price","bid_price","bid_amount"]
[1765227171395,0.22025742,90803.0,90798.0,0.01262632]
[1765227171396,0.30185345,90802.0,90798.0,0.01262632]
[1765227171519,0.06605056,90799.0,90798.0,0.23289342]
[1765227171721,0.0110137,90796.0,90793.0,0.1456]
[1765227172015,0.22027887,90794.0,90793.0,0.1456]
[1765227172124,0.0110143,90791.0,90786.0,0.01101491]
[1765227172341,0.0110143,90791.0,90786.0,0.22029801]
[1765227172542,0.01101406,90793.0,90788.0,0.01101467]
[1765227172950,0.2312955,90793.0,90790.0,0.22028675]
[1765227173250,0.001,90791.0,90790.0,0.23141752]
[1765227173864,0.01101357,90797.0,90790.0,0.23141752]
[1765227173865,0.02948052,90812.0,90811.0,0.22023763]
[1765227174086,0.01748,90829.0,90826.0,0.01101006]
[1765227174293,0.01748,90829.0,90828.0,0.22019641]
[1765227175202,0.01030741,90837.0,90835.0,0.22017757]
[1765227175497,0.01030741,90838.0,90837.0,0.01100872]
[1765227175639,0.323,90841.0,90838.0,0.0110086]
[1765227175841,0.01030741,90840.0,90839.0,0.22016975]
[1765227176052,0.3997459,90841.0,90838.0,0.23118064]
[1765227176251,0.35078741,90840.0,90838.0,0.23118064]
[1765227176453,0.01030741,90839.0,90838.0,0.23118064]
[1765227177379,0.00038793,90841.0,90840.0,0.22016732]
[1765227177580,0.00038793,90841.0,90840.0,0.31138019]
[1765227177783,0.00038793,90841.0,90840.0,0.39316019]
[1765227177984,0.00038793,90841.0,90840.0,0.31138019]
[1765227178194,0.01029765,90857.0,90847.0,0.22015036]
[1765227178392,0.0004,90860.0,90859.0,0.22012128]
[1765227178596,0.0004,90860.0,90859.0,0.43602714]
[1765227179061,4e-05,90864.0,90863.0,0.28263458]
[1765227179264,0.06306086,90906.0,90863.0,0.28263458]
[1765227179265,0.01028322,90900.0,90899.0,0.22002442]
[1765227179464,0.01099892,90918.0,90903.0,0.25714474]
[1765227179682,0.0109988,90919.0,90903.0,0.22001474]
[1765227179835,0.0002,90920.0,90903.0,0.22162761]
[1765227180036,0.0002,90920.0,90903.0,0.35587761]
[1765227180446,9.228e-05,90945.0,90940.0,0.01099626]
[1765227180624,9.228e-05,90945.0,90940.0,0.01260913]
[1765227180800,9.228e-05,90945.0,90942.0,0.23091594]
[1765227181006,0.01099601,90942.0,90937.0,0.01099662]
[1765227181232,0.01099626,90940.0,90924.0,0.01752]
[1765227181425,9.228e-05,90945.0,90923.0,0.01099831]
[1765227181426,0.01099662,90937.0,90923.0,0.01099831]
[1765227181673,0.01099662,90937.0,90923.0,0.00161287]
[1765227181674,0.21996188,90925.0,90923.0,0.00161287]
[1765227181875,0.0109994,90914.0,90911.0,0.03607]
[1765227182102,0.21999296,90912.0,90911.0,0.03607]
[1765227182286,0.21999296,90912.0,90903.0,0.01300073]
[1765227182287,0.01100037,90906.0,90901.0,0.01100097]
[1765227182545,0.23103655,90895.0,90892.0,0.01752]
[1765227182770,0.01100134,90898.0,90893.0,0.01100194]
[1765227182969,0.01100122,90899.0,90893.0,0.23104061]
[1765227183254,0.0110011,90900.0,90896.0,0.01100158]
[1765227183456,0.23102587,90899.0,90896.0,0.00011635]
[1765227183684,0.01100122,90899.0,90896.0,0.00011635]
[1765227183899,0.06605056,90897.0,90896.0,0.00011635]
[1765227184328,0.07705202,90897.0,90891.0,0.01100218]
[1765227184549,0.01100182,90894.0,90891.0,0.00011656]
[1765227184753,0.06605056,90897.0,90893.0,0.01100194]
[1765227184969,0.0110017,90895.0,90892.0,0.01100206]
[1765227185391,0.0110017,90895.0,90891.0,0.01111874]
[1765227185606,0.0110017,90895.0,90891.0,0.00011656]
[1765227185607,0.22003894,90893.0,90891.0,0.00011656]
[1765227186033,0.08691618,90894.0,90893.0,0.001]
[1765227186247,0.22003894,90893.0,90891.0,0.00011656]
[1765227186688,0.01100182,90894.0,90891.0,0.00211656]
[1765227186902,0.22004136,90892.0,90891.0,0.00011656]
[1765227187187,0.29770967,90892.0,90891.0,0.00011656]
[1765227187419,9.228e-05,90893.0,90891.0,0.26818321]
[1765227187612,9.228e-05,90893.0,90892.0,0.04802287]
[1765227187820,9.228e-05,90893.0,90892.0,0.12335287]
[1765227188674,9.228e-05,90893.0,90892.0,0.04902287]
[1765227189488,9.228e-05,90893.0,90892.0,0.00261287]
[1765227189899,0.00142171,90893.0,90892.0,0.22265423]
[1765227190136,0.00142171,90893.0,90892.0,0.26906423]
[1765227190354,0.00142171,90893.0,90892.0,0.22265423]
[1765227190563,0.00142171,90893.0,90892.0,0.26806423]
[1765227190940,0.00242171,90893.0,90892.0,0.26806423]
[1765227191328,0.00142171,90893.0,90892.0,0.26806423]
[1765227191739,0.00142171,90893.0,90892.0,0.26906423]
[1765227191936,0.00142171,90893.0,90892.0,0.34439423]
[1765227192825,0.00142171,90893.0,90892.0,0.49199423]
[1765227193377,0.01099565,90945.0,90940.0,0.01099626]
[1765227193599,0.01099565,90945.0,90937.0,0.01099662]
[1765227193600,0.01099589,90943.0,90937.0,0.01099662]
[1765227193840,0.01099577,90944.0,90939.0,0.01099638]
[1765227193996,0.01099529,90948.0,90942.0,0.01099601]
[1765227194317,0.01099589,90943.0,90939.0,0.01099638]
[1765227194514,0.00038848,90943.0,90941.0,0.2309175]
[1765227194691,0.0549804,90942.0,90941.0,0.2309175]
[1765227195443,0.0549804,90942.0,90941.0,0.01099614]
[1765227196764,0.08834545,90942.0,90941.0,0.01099614]
[1765227196916,0.0837204,90942.0,90941.0,0.01099614]
[1765227197118,0.0847204,90942.0,90941.0,0.01099614]
[1765227197542,0.0559804,90942.0,90941.0,0.01099614]
[1765227197720,0.0549804,90942.0,90941.0,0.01099614]
[1765227198124,0.02874,90941.0,90940.0,0.21992315]
[1765227198324,0.02874,90941.0,90940.0,0.23091941]
[1765227199120,0.0559804,90942.0,90940.0,0.23091941]
[1765227199426,0.0549804,90942.0,90940.0,0.23091941]
[1765227199972,0.00241695,90941.0,90940.0,0.23091941]
[1765227200338,0.00141695,90941.0,90940.0,0.23091941]
[1765227200540,0.01651103,90941.0,90940.0,0.23091941]
[1765227200745,0.0109965,90938.0,90923.0,0.03657]
[1765227200951,0.01099795,90926.0,90923.0,0.00161287]
[1765227201154,0.02874,90924.0,90922.0,0.21996643]
[1765227201354,0.01099831,90923.0,90920.0,0.01099868]
[1765227201555,0.01099892,90918.0,90914.0,0.23098547]
[1765227201760,0.01099964,90912.0,90906.0,0.01100037]
[1765227201962,0.01100025,90907.0,90904.0,0.01100061]
[1765227202159,0.0604791,90911.0,90906.0,0.01100037]
[1765227202357,0.0604791,90911.0,90909.0,0.22000022]
[1765227202761,0.07698709,90911.0,90909.0,0.22000022]
[1765227202972,0.07698709,90911.0,90909.0,0.22011678]
[1765227203174,0.0604791,90911.0,90909.0,0.22011496]
[1765227203354,0.02874,90910.0,90909.0,0.22011496]
[1765227203559,0.02874,90910.0,90909.0,0.00011656]
[1765227205582,0.02974,90910.0,90909.0,0.00011656]
[1765227206366,0.03997542,90910.0,90909.0,0.00011656]
[1765227206693,0.07044379,90910.0,90909.0,0.00011656]
[1765227206891,0.03997542,90910.0,90909.0,0.22011678]
[1765227208788,0.06871542,90910.0,90909.0,0.22011678]
[1765227209361,0.03997542,90910.0,90909.0,0.22011678]
[1765227210179,0.04000824,90910.0,90909.0,0.22011678]
[1765227211004,0.01126824,90910.0,90909.0,0.22011678]
[1765227211210,0.01126824,90910.0,90909.0,0.26834965]
[1765227211856,0.01177024,90910.0,90909.0,0.26834965]
[1765227212688,0.01177024,90910.0,90909.0,0.22172965]
[1765227214175,0.04048024,90910.0,90909.0,0.00011656]
[1765227214402,0.3779146,90910.0,90909.0,0.00011656]
[1765227214627,0.12457863,90910.0,90909.0,0.00011656]
[1765227214860,0.10095934,90910.0,90909.0,0.22011678]
[1765227215976,0.12966934,90910.0,90909.0,0.00011656]
[1765227216412,0.34966714,90910.0,90909.0,0.00011656]
[1765227217026,0.10095934,90910.0,90909.0,0.22011678]
[1765227217227,0.10095934,90910.0,90909.0,0.00011656]
[1765227217474,0.10095934,90910.0,90909.0,0.22011678]
[1765227217694,0.01177024,90910.0,90909.0,0.33914965]
[1765227217906,0.0531434,90924.0,90918.0,0.21997844]
[1765227218123,0.0531434,90924.0,90909.0,0.11914943]
[1765227218124,0.0531434,90940.0,90937.0,0.21993248]
[1765227218340,0.02952411,90945.0,90943.0,0.21991797]
[1765227218549,0.0531434,90947.0,90945.0,0.21991313]
[1765227218792,0.0531434,90948.0,90945.0,0.21991313]
[1765227219008,0.02361929,90948.0,90946.0,0.2199085]
[1765227219233,0.02400777,90948.0,90945.0,0.01099565]
[1765227219442,0.04048,90946.0,90945.0,0.01099565]
[1765227219654,0.04048,90946.0,90944.0,0.22689527]
[1765227219861,0.00038848,90948.0,90946.0,0.21991071]
[1765227220316,0.0176,90955.0,90946.0,0.21991071]
[1765227220317,0.03944141,90959.0,90954.0,0.04662]
[1765227220532,0.09875014,90981.0,90954.0,0.04662]
[1765227220533,0.02957737,90971.0,90967.0,0.01099299]
[1765227220745,0.02957737,90985.0,90982.0,0.01099118]
[1765227220963,0.04669,90981.0,90980.0,0.01099142]
[1765227221174,0.04669,90981.0,90979.0,0.21983094]
[1765227221382,0.01099251,90971.0,90965.0,0.21986311]
[1765227221597,0.01099251,90971.0,90960.0,0.21987522]
[1765227221598,0.0109919,90976.0,90973.0,0.01099227]
[1765227221800,0.2308242,90979.0,90973.0,0.01110883]
[1765227222012,0.04669,90974.0,90973.0,0.00011656]
[1765227222422,0.06971,90978.0,90973.0,0.00011656]
[1765227222656,0.33403058,90987.0,90983.0,0.01099106]
[1765227222860,0.32304,90987.0,90984.0,0.01099094]
[1765227223065,0.39634,90987.0,90984.0,0.01099094]
[1765227223267,4e-05,90987.0,90985.0,0.21981596]
[1765227223602,0.0331,90985.0,90984.0,0.01099094]
[1765227223810,0.01099094,90984.0,90980.0,0.01099142]
[1765227224009,0.0331,90985.0,90982.0,0.01099118]
[1765227224227,0.0331,90985.0,90983.0,0.21982128]
[1765227224974,0.001,90984.0,90983.0,0.21982128]
[1765227225412,4e-05,90987.0,90986.0,0.21981403]
[1765227226233,0.04892,90987.0,90985.0,0.21981645]
[1765227226503,0.0604791,90986.0,90985.0,0.21981645]
[1765227227704,0.0604791,90986.0,90984.0,0.01099094]
[1765227227887,0.0604791,90986.0,90985.0,0.21981645]
[1765227229277,4e-05,90987.0,90985.0,0.34269645]
[1765227229473,4e-05,90987.0,90986.0,0.04879]
[1765227229678,4e-05,90987.0,90986.0,0.12449287]
[1765227230193,0.00231168,90987.0,90986.0,0.21027902]
[1765227230619,0.00231168,90987.0,90986.0,0.09165316]
[1765227230819,0.00231168,90987.0,90986.0,0.16374316]
[1765227231197,0.00231168,90987.0,90986.0,0.14614316]
[1765227231418,0.00231168,90987.0,90986.0,0.07505316]
[1765227231914,0.00231168,90987.0,90986.0,0.07205316]
[1765227232116,0.00231168,90987.0,90985.0,0.21981645]
[1765227232388,0.0331,90986.0,90985.0,0.21981645]
[1765227232590,0.06305,90986.0,90985.0,0.21981645]
[1765227233051,0.13592,90986.0,90985.0,0.21981645]
[1765227233739,0.06305,90986.0,90985.0,0.21981645]
[1765227233895,0.06405,90986.0,90985.0,0.21981645]
[1765227235208,0.07087474,90986.0,90984.0,0.21981781]
[1765227235429,0.06305,90985.0,90984.0,0.21981781]
[1765227235627,0.13592,90985.0,90984.0,0.21981781]
[1765227236522,0.0109919,90976.0,90970.0,0.01099263]
[1765227236733,0.0109919,90976.0,90969.0,0.01099275]
[1765227236734,0.0604791,90974.0,90969.0,0.01099275]
[1765227236935,0.0604791,90974.0,90968.0,0.2308483]
[1765227236936,0.0904291,90974.0,90972.0,0.21984595]
[1765227237143,0.0904291,90974.0,90968.0,0.01099287]
[1765227237144,0.1632591,90974.0,90970.0,0.01099263]
[1765227237376,0.1632591,90974.0,90964.0,0.01099336]
[1765227237589,0.01756,90993.0,90986.0,0.21981403]
[1765227237729,0.0733,90991.0,90986.0,0.21981403]
[1765227237960,0.06548168,90987.0,90986.0,0.21981403]
[1765227238149,0.06538168,90987.0,90986.0,0.21981403]
[1765227238352,0.01656168,90987.0,90986.0,0.21981403]
[1765227238708,0.00227168,90987.0,90986.0,0.21981403]
[1765227239749,0.00227168,90987.0,90986.0,0.34269403]
[1765227240241,0.00227168,90987.0,90986.0,0.26860403]
[1765227240964,0.00227168,90987.0,90986.0,0.33862403]
[1765227242479,0.00227168,90987.0,90986.0,0.3402369]
[1765227243305,0.00227168,90987.0,90986.0,0.26860403]
[1765227243516,0.00227168,90987.0,90986.0,0.21981403]
[1765227244167,0.00227168,90987.0,90986.0,0.24308773]
[1765227244721,0.00227168,90987.0,90986.0,0.28856773]
[1765227245086,0.00227168,90987.0,90986.0,0.24308773]
[1765227245713,0.00227168,90987.0,90984.0,0.01099094]
[1765227245714,0.10984168,90987.0,90984.0,0.01099094]
[1765227245910,0.10984168,90987.0,90973.0,0.01110883]
[1765227245911,0.0109913,90981.0,90973.0,0.01110883]
[1765227246123,0.0461,90974.0,90973.0,0.00011656]
[1765227246384,0.03461,90974.0,90973.0,0.02344375]
[1765227246620,0.01756,90980.0,90978.0,0.21983336]
[1765227247208,0.01756,90980.0,90979.0,0.02335117]
[1765227247413,0.0934791,90985.0,90984.0,0.21981886]
[1765227247614,0.0604791,90985.0,90984.0,0.24317003]
[1765227247914,0.1027491,90985.0,90984.0,0.24317003]
[1765227248127,0.02836,90997.0,90995.0,0.21979018]
[1765227248333,0.01756,90996.0,90993.0,0.21979192]
[1765227248517,0.0461,90992.0,90989.0,0.23079608]
[1765227248685,0.01025774,90991.0,90990.0,0.24320659]
[1765227249114,0.05635774,90991.0,90990.0,0.24320659]
[1765227250247,0.05635774,90991.0,90990.0,0.02340277]
[1765227250248,0.33772969,90991.0,90990.0,0.02340277]
[1765227250539,0.01099106,90983.0,90976.0,0.04991878]
[1765227250765,0.28031488,90977.0,90976.0,0.02932939]
[1765227250968,0.41532874,90977.0,90976.0,0.0234676]
[1765227251359,0.40221262,90977.0,90976.0,0.0234676]
[1765227251494,0.72521262,90977.0,90976.0,0.0234676]
[1765227251698,0.21984303,90974.0,90973.0,0.00011656]
[1765227251902,0.31065077,90974.0,90973.0,0.02359539]
[1765227252104,0.37599077,90974.0,90973.0,0.00011656]
[1765227252525,0.09269616,90974.0,90973.0,0.24343875]
[1765227252729,0.04675616,90974.0,90973.0,0.24343875]
[1765227252930,0.31363919,90974.0,90973.0,0.00011656]
[1765227253170,0.37986919,90974.0,90973.0,0.00011656]
[1765227253402,0.16002616,90974.0,90973.0,0.00011656]
[1765227253858,0.37986919,90974.0,90973.0,0.00011656]
[1765227254056,0.15802616,90974.0,90973.0,0.00011656]
[1765227254311,0.42785558,90974.0,90973.0,0.00011656]
[1765227254912,0.37786919,90974.0,90973.0,0.00011656]
[1765227255453,0.15902616,90974.0,90973.0,0.219962]
[1765227255698,0.15902616,90974.0,90973.0,0.00011656]
[1765227255964,0.15904713,90974.0,90973.0,0.00011656]
[1765227256345,0.15904713,90974.0,90973.0,0.219962]
[1765227256552,0.15904713,90974.0,90973.0,0.00011656]
[1765227257727,0.37889016,90974.0,90973.0,0.00011656]
[1765227258118,0.47404637,90974.0,90973.0,0.00011656]
[1765227258324,0.79704637,90974.0,90973.0,0.00011656]
[1765227258954,0.79604637,90974.0,90973.0,0.00011656]
[1765227259286,0.70089016,90974.0,90973.0,0.00011656]
[1765227259514,0.70289016,90974.0,90973.0,0.00011656]
[1765227260195,0.41681713,90974.0,90973.0,0.219962]
[1765227260419,0.03172713,90974.0,90973.0,0.219962]
[1765227260659,0.05568842,90974.0,90973.0,0.219962]
[1765227260873,0.06596713,90974.0,90973.0,0.219962]
[1765227261077,0.06396713,90974.0,90973.0,0.219962]
[1765227261294,0.05368842,90974.0,90973.0,0.219962]
[1765227261515,0.16532842,90974.0,90973.0,0.219962]
[1765227261734,0.18701462,90974.0,90973.0,0.219962]
[1765227262223,0.40685765,90974.0,90973.0,0.00011656]
[1765227262887,0.72985765,90974.0,90973.0,0.00011656]
[1765227263765,0.72985765,90974.0,90942.0,0.01099601]
[1765227263766,0.01099553,90946.0,90942.0,0.01099601]
[1765227263972,0.0604791,90943.0,90942.0,0.01111265]
[1765227264189,0.06212315,90943.0,90942.0,0.23103294]
[1765227264386,0.06012315,90943.0,90942.0,0.23103294]
[1765227264604,0.12935315,90943.0,90942.0,0.23103294]
[1765227264820,0.12935315,90943.0,90942.0,0.00011664]
[1765227265239,0.06012315,90943.0,90942.0,0.00011664]
[1765227265978,0.05945315,90943.0,90942.0,0.00011664]
[1765227267449,0.00097405,90943.0,90942.0,0.02372154]
[1765227267613,0.00097405,90943.0,90942.0,0.00172951]
[1765227267828,0.00097405,90943.0,90942.0,0.02372154]
[1765227268261,0.00097405,90943.0,90942.0,0.00172951]
[1765227268411,0.00097405,90943.0,90942.0,0.02372154]
[1765227268629,0.00097405,90943.0,90942.0,0.11333951]
[1765227268834,0.00097405,90943.0,90942.0,0.13633154]
[1765227270359,0.00097405,90943.0,90942.0,0.22103702]
[1765227270360,0.11141405,90943.0,90942.0,0.22103702]
[1765227270567,0.12835297,90943.0,90942.0,0.00111664]
[1765227270797,0.18883207,90943.0,90942.0,0.00111664]
[1765227271737,0.40875004,90943.0,90942.0,0.00011664]
[1765227271892,0.18883207,90943.0,90942.0,0.00011664]
[1765227272125,0.40875004,90943.0,90942.0,0.00011664]
[1765227272748,0.17189315,90943.0,90942.0,0.22003702]
[1765227272962,0.39181112,90943.0,90942.0,0.00011664]
[1765227274082,0.10293315,90943.0,90942.0,0.00011664]
[1765227274288,0.17189315,90943.0,90942.0,0.00011664]
[1765227274498,0.17189315,90943.0,90942.0,0.22003702]
[1765227275059,0.17289315,90943.0,90942.0,0.00011664]
[1765227275597,0.19045315,90943.0,90942.0,0.00011664]
[1765227275823,0.25972163,90943.0,90942.0,0.00011664]
[1765227276816,0.4796396,90943.0,90942.0,0.00011664]
[1765227277080,0.25972163,90943.0,90942.0,0.00011664]
[1765227277246,0.19045315,90943.0,90942.0,0.00011664]
[1765227277431,0.41037112,90943.0,90942.0,0.00011664]
[1765227277648,0.19045315,90943.0,90942.0,0.22003702]
[1765227278394,0.19045315,90943.0,90942.0,0.00011664]
[1765227278395,0.41037112,90943.0,90942.0,0.00011664]
[1765227278651,0.47854001,90943.0,90942.0,0.00011664]
[1765227279698,0.48880894,90943.0,90942.0,0.00011664]
[1765227280323,5.81180894,90943.0,90942.0,0.00011664]
[1765227280535,0.01099892,90918.0,90911.0,0.21999535]
[1765227280704,0.0314,90912.0,90911.0,0.23099511]
[1765227280987,0.07288,90912.0,90911.0,0.23099511]
[1765227281511,0.0314,90912.0,90911.0,0.23099511]
[1765227281717,0.0314,90916.0,90915.0,0.2199857]
[1765227283113,0.00035262,90918.0,90917.0,0.21998086]
[1765227284065,0.10889262,90918.0,90917.0,0.21998086]
[1765227284272,0.04478262,90918.0,90917.0,0.21998086]
[1765227287350,0.00035262,90918.0,90917.0,0.21998086]
[1765227287561,0.12313879,90918.0,90915.0,0.01099928]
[1765227287762,0.04409,90916.0,90915.0,0.23098498]
[1765227288410,0.1082,90916.0,90915.0,0.23098498]
[1765227288829,0.00035262,90918.0,90917.0,0.21998086]
[1765227289337,0.04478262,90918.0,90917.0,0.21998086]
[1765227289568,0.04478262,90918.0,90914.0,0.0109994]
[1765227289727,0.13854778,90918.0,90916.0,0.21998328]
[1765227289948,0.13854778,90918.0,90917.0,0.21998086]
[1765227290153,0.07443778,90918.0,90917.0,0.21998086]
[1765227290307,0.2199815,90917.0,90915.0,0.01099928]
[1765227290508,0.08051464,90916.0,90915.0,0.23098475]
[1765227291063,0.10854,90916.0,90915.0,0.23098475]
[1765227291249,0.04443,90916.0,90915.0,0.23098475]
[1765227291635,0.10854,90916.0,90915.0,0.23098475]
[1765227293344,0.10854,90916.0,90915.0,0.001]
[1765227293572,0.04443,90916.0,90915.0,0.001]
[1765227294788,0.00035262,90918.0,90915.0,0.001]
[1765227295341,0.23133027,90918.0,90915.0,0.001]
[1765227295522,0.26441328,90916.0,90915.0,0.001]
[1765227295852,0.21998582,90915.0,90911.0,0.01099976]
[1765227296056,0.04443,90916.0,90912.0,0.01099964]
[1765227296228,0.21998312,90917.0,90913.0,0.21998976]
[1765227296431,0.01099916,90916.0,90913.0,0.23098928]
[1765227296856,0.01099916,90916.0,90915.0,0.001]
[1765227296993,0.00035262,90918.0,90915.0,0.01199928]
[1765227297343,0.00035262,90918.0,90916.0,0.21998328]
[1765227297538,0.00035262,90918.0,90917.0,0.21998086]
[1765227297734,0.00035262,90918.0,90917.0,0.33252373]
[1765227298724,0.00035262,90918.0,90917.0,0.21998086]
[1765227299335,0.00035262,90918.0,90917.0,0.33252373]
[1765227299657,0.00035262,90918.0,90917.0,0.26774373]
[1765227300269,0.00035262,90918.0,90917.0,0.33252373]
[1765227300697,0.26272106,90918.0,90917.0,0.00161287]
[1765227300901,0.22001132,90905.0,90901.0,0.03341097]
[1765227301138,0.01100122,90899.0,90895.0,0.22003226]
[1765227301347,0.23105371,90888.0,90881.0,0.0285234]
[1765227301543,0.07244,90894.0,90890.0,0.01100231]
[1765227301752,0.03005,90894.0,90891.0,0.01100218]
[1765227302088,0.03005,90894.0,90893.0,0.22003894]
[1765227302516,0.03016635,90894.0,90893.0,0.22003894]
[1765227302847,0.00011635,90894.0,90893.0,0.22165181]
[1765227303046,0.00011635,90894.0,90893.0,0.31994181]
[1765227304600,0.00011635,90894.0,90893.0,0.22165181]
[1765227304807,0.00011635,90894.0,90893.0,0.26161181]
[1765227305012,0.00011635,90894.0,90893.0,0.31994181]
[1765227305424,0.00011635,90894.0,90893.0,0.32094181]
[1765227306296,0.00011635,90894.0,90893.0,0.46654181]
[1765227306895,0.00011635,90894.0,90893.0,0.40821181]
[1765227307486,0.00011635,90894.0,90893.0,0.36825181]
[1765227308132,0.00011635,90894.0,90893.0,0.40821181]
[1765227308299,0.00011635,90894.0,90893.0,0.46654181]
[1765227308532,0.00011635,90894.0,90893.0,0.32024181]
[1765227308753,0.00011635,90894.0,90893.0,0.7276648]
[1765227308988,0.0001163,90917.0,90916.0,0.21998328]
[1765227309140,0.0001163,90917.0,90916.0,0.22037176]
[1765227309337,0.0001163,90917.0,90916.0,0.00038848]
[1765227310312,0.26248716,90917.0,90916.0,0.00038848]
[1765227310521,0.33436741,90917.0,90916.0,0.00038848]
[1765227310936,0.35188741,90917.0,90916.0,0.00038848]
[1765227311137,0.67488741,90917.0,90916.0,0.00038848]
[1765227311362,0.69962051,90917.0,90916.0,0.00038848]
[1765227311565,0.72182051,90917.0,90916.0,0.00038848]
[1765227311763,0.80809979,90917.0,90916.0,0.00038848]
[1765227311899,0.80709979,90917.0,90916.0,0.00038848]
[1765227312104,0.81009979,90917.0,90916.0,0.00038848]
[1765227312525,0.70162051,90917.0,90916.0,0.00038848]
[1765227313050,0.67788741,90917.0,90916.0,0.00038848]
[1765227313199,0.66036741,90917.0,90916.0,0.00038848]
[1765227313396,0.67488741,90917.0,90916.0,0.00038848]
[1765227313819,0.67688741,90917.0,90916.0,0.00038848]
[1765227314273,0.78336669,90917.0,90916.0,0.00038848]
[1765227314812,0.67688741,90917.0,90916.0,0.00038848]
[1765227315023,0.67488741,90917.0,90916.0,0.00038848]
[1765227315398,0.67688741,90917.0,90916.0,0.00038848]
[1765227317057,0.67488741,90917.0,90916.0,0.00038848]
[1765227317404,0.67688741,90917.0,90916.0,0.00038848]
[1765227317775,0.67488741,90917.0,90916.0,0.00038848]
[1765227317973,0.78536669,90917.0,90916.0,0.00038848]
[1765227318176,0.67688741,90917.0,90916.0,0.00038848]
[1765227319424,0.69908741,90917.0,90916.0,0.00038848]
[1765227319619,0.67688741,90917.0,90916.0,0.00038848]
[1765227320807,0.65936741,90917.0,90916.0,0.00038848]
[1765227321010,0.78536669,90917.0,90916.0,0.00038848]
[1765227321432,5.80756669,90917.0,90916.0,0.00038848]
[1765227321630,5.78536669,90917.0,90916.0,0.00038848]
[1765227321827,5.80756669,90917.0,90916.0,0.00038848]
[1765227322412,0.87008968,90917.0,90916.0,0.00038848]
[1765227322606,5.87008968,90917.0,90916.0,0.00038848]
[1765227323016,5.90957232,90917.0,90916.0,0.00038848]
[1765227323258,5.86808968,90917.0,90916.0,0.00038848]
[1765227323464,5.86797338,90917.0,90916.0,0.00038848]
[1765227323712,5.84977338,90917.0,90916.0,0.00038848]
[1765227323885,2.7636941,90917.0,90916.0,0.00038848]
[1765227324433,2.1115941,90917.0,90916.0,0.00038848]
[1765227324592,4.0685941,90917.0,90916.0,0.00038848]
[1765227325212,4.0907941,90917.0,90916.0,0.00038848]
[1765227325373,2.8865941,90917.0,90916.0,0.00027218]
[1765227325571,0.01100255,90888.0,90883.0,0.01100315]
[1765227325804,0.23105796,90887.0,90885.0,0.22005812]
[1765227325962,0.07098267,90887.0,90885.0,0.22005812]
[1765227326163,0.02797,90889.0,90888.0,0.22005105]
[1765227326398,0.02797,90889.0,90887.0,0.22005347]
[1765227326741,0.04154,90888.0,90887.0,0.22005347]
[1765227326968,0.1020191,90888.0,90887.0,0.22005347]
[1765227327558,0.1619991,90888.0,90886.0,0.23105757]
[1765227327769,0.08326,90887.0,90886.0,0.23105757]
[1765227328541,0.02328,90887.0,90886.0,0.23105757]
[1765227329151,0.08326,90887.0,90886.0,0.23105757]
[1765227329527,0.02328,90887.0,90886.0,0.23105757]
[1765227330322,0.0604791,90888.0,90887.0,0.22005347]
[1765227330731,0.0604791,90888.0,90886.0,0.00161287]
[1765227330732,0.17859401,90888.0,90886.0,0.00161287]
[1765227330935,0.30331347,90887.0,90886.0,0.00161287]
[1765227331140,0.30331347,90887.0,90883.0,0.00011635]
[1765227331141,0.22006073,90884.0,90883.0,0.00011635]
[1765227331342,0.04136,90884.0,90883.0,0.00011635]
[1765227331546,0.32140073,90884.0,90883.0,0.00011635]
[1765227331747,0.389352,90884.0,90883.0,0.00011635]
[1765227331945,0.32140073,90884.0,90883.0,0.00011635]
[1765227333198,0.32140073,90884.0,90883.0,0.00111635]
[1765227333365,0.32140073,90884.0,90883.0,0.2211795]
[1765227333366,0.10134,90884.0,90883.0,0.2211795]
[1765227334610,0.32140073,90884.0,90883.0,0.00111635]
[1765227334813,0.10134,90884.0,90883.0,0.00111635]
[1765227335022,0.32140073,90884.0,90883.0,0.00111635]
[1765227335232,0.39155253,90884.0,90883.0,0.00111635]
[1765227335606,0.39155253,90884.0,90883.0,0.00011635]
[1765227335804,0.39255253,90884.0,90883.0,0.00011635]
[1765227338176,5.72583947,90884.0,90883.0,0.00011635]
[1765227338315,3.53743947,90884.0,90883.0,0.00011635]
[1765227338754,3.55863947,90884.0,90883.0,0.00011635]
[1765227338960,3.53743947,90884.0,90883.0,0.00011635]
[1765227339159,3.55963947,90884.0,90883.0,0.00011635]
[1765227339361,3.53643947,90884.0,90883.0,0.00011635]
[1765227339802,3.53843947,90884.0,90883.0,0.00011635]
[1765227340556,3.56063947,90884.0,90883.0,0.00011635]
[1765227342108,0.64640073,90884.0,90883.0,0.00011635]
[1765227342306,0.67420673,90884.0,90883.0,0.00011635]
[1765227343251,0.65668673,90884.0,90883.0,0.00011635]
[1765227343456,0.65814673,90884.0,90883.0,0.00011635]
[1765227344460,0.65614673,90884.0,90883.0,0.00011635]
[1765227344649,0.76562601,90884.0,90883.0,0.00011635]
[1765227344844,0.70418601,90884.0,90883.0,0.00011635]
[1765227345080,0.59570673,90884.0,90883.0,0.00011635]
[1765227345287,0.65714673,90884.0,90883.0,0.00011635]
[1765227351970,0.67466673,90884.0,90883.0,0.00011635]
[1765227352591,0.69839971,90884.0,90883.0,0.00011635]
[1765227352794,0.78314601,90884.0,90883.0,0.00011635]
[1765227353002,0.8068791,90884.0,90883.0,0.00011635]
[1765227354645,0.8290791,90884.0,90883.0,0.00011635]
[1765227354857,0.8068791,90884.0,90883.0,0.00011635]
[1765227355054,0.8290791,90884.0,90883.0,0.00011635]
[1765227355455,0.8280791,90884.0,90883.0,0.00011635]
[1765227355855,0.8058791,90884.0,90883.0,0.00011635]
[1765227356059,0.55334673,90884.0,90883.0,0.00011635]
[1765227356290,0.65380673,90884.0,90883.0,0.00011635]
[1765227356671,0.433746,90884.0,90883.0,0.00011635]
[1765227356865,0.372306,90884.0,90883.0,0.00011635]
[1765227357392,0.434746,90884.0,90883.0,0.00011635]
[1765227357590,0.433746,90884.0,90883.0,0.00011635]
[1765227358219,0.54222528,90884.0,90883.0,0.00011635]
[1765227358833,0.110746,90884.0,90883.0,0.00011635]
[1765227361422,0.111746,90884.0,90883.0,0.00011635]
[1765227364580,0.11177153,90884.0,90883.0,0.00011635]
[1765227365679,0.34935226,90884.0,90883.0,0.00011635]
[1765227371649,0.33183226,90884.0,90883.0,0.00011635]
[1765227371846,0.34935226,90884.0,90883.0,0.00011635]
[1765227372421,0.45783154,90884.0,90883.0,0.00011635]
[1765227372623,0.48157791,90884.0,90883.0,0.00011635]
[1765227373699,5.80457791,90884.0,90883.0,0.00011635]
[1765227373906,5.8564025,90884.0,90883.0,0.00011635]
[1765227374525,5.80457791,90884.0,90883.0,0.00011635]
[1765227375133,0.69609863,90884.0,90883.0,0.00011635]
[1765227375536,0.0740779,90884.0,90883.0,0.00011635]
[1765227375743,0.02883153,90884.0,90883.0,0.00011635]
[1765227376070,0.01852,90884.0,90883.0,0.2201795]
[1765227376282,0.001,90884.0,90883.0,0.23520237]
[1765227376477,0.001,90884.0,90883.0,0.32557237]